[Event "Late-Titled-Tuesday-Blitz-March-12-2024"]
[Site "Chess.com"]
[Date "2024.03.12"]
[Round "1"]
[White "WindWhistler11"]
[Black "Eduard_Limonov"]
[Result "1-0"]
[WhiteElo "2525"]
[BlackElo "2866"]
[TimeControl "180+1"]
[EndTime "14:07:44 PDT"]
[Termination "WindWhistler11 won by resignation"]

1. Nf3 {[%clk 0:02:53.9]} 1... d5 {[%clk 0:02:57.1]} 2. g3 {[%clk 0:02:54.8]}
2... Nf6 {[%clk 0:02:57.1]} 3. Bg2 {[%clk 0:02:53.1]} 3... e6 {[%clk 0:02:57.1]}
4. O-O {[%clk 0:02:50.9]} 4... Be7 {[%clk 0:02:57.6]} 5. c4 {[%clk 0:02:46.4]}
5... O-O {[%clk 0:02:57.9]} 6. b3 {[%clk 0:02:36.2]} 6... d4 {[%clk 0:02:57.1]}
7. e3 {[%clk 0:02:36.1]} 7... c5 {[%clk 0:02:57.3]} 8. exd4 {[%clk 0:02:36.3]}
8... cxd4 {[%clk 0:02:58.2]} 9. Re1 {[%clk 0:02:37]} 9... Nc6 {[%clk 0:02:58.2]}
10. Ne5 {[%clk 0:02:37.2]} 10... Nxe5 {[%clk 0:02:52.7]} 11. Rxe5 {[%clk
0:02:38.1]} 11... Qc7 {[%clk 0:02:43.1]} 12. Re1 {[%clk 0:02:29.5]} 12... e5
{[%clk 0:02:43.2]} 13. d3 {[%clk 0:02:28.3]} 13... Nd7 {[%clk 0:02:37.9]} 14.
Na3 {[%clk 0:02:26]} 14... f6 {[%clk 0:02:34.6]} 15. Nc2 {[%clk 0:02:21.6]}
15... a5 {[%clk 0:02:30.6]} 16. Nxd4 {[%clk 0:02:17.3]} 16... Nc5 {[%clk
0:02:23.5]} 17. Nb5 {[%clk 0:02:14.9]} 17... Qd8 {[%clk 0:02:23.2]} 18. d4
{[%clk 0:02:09.7]} 18... exd4 {[%clk 0:02:23]} 19. Qxd4 {[%clk 0:02:03.5]} 19...
Bd7 {[%clk 0:02:12.2]} 20. Ba3 {[%clk 0:01:56.9]} 20... Rc8 {[%clk 0:01:45.7]}
21. Rad1 {[%clk 0:01:55.4]} 21... Bxb5 {[%clk 0:01:29.1]} 22. Qxd8 {[%clk
0:01:51.8]} 22... Rfxd8 {[%clk 0:01:29.5]} 23. cxb5 {[%clk 0:01:52.3]} 23...
Rxd1 {[%clk 0:01:26.8]} 24. Rxd1 {[%clk 0:01:50.8]} 24... b6 {[%clk 0:01:27.1]}
25. Bc6 {[%clk 0:01:36.7]} 25... Kf7 {[%clk 0:01:21.6]} 26. Kg2 {[%clk
0:01:36.3]} 26... g6 {[%clk 0:01:08.4]} 27. h4 {[%clk 0:01:35.9]} 27... f5
{[%clk 0:01:08.2]} 28. Bxc5 {[%clk 0:01:19.4]} 28... Bxc5 {[%clk 0:01:09.1]} 29.
Rd7+ {[%clk 0:01:19.6]} 29... Kg8 {[%clk 0:01:08.3]} 30. h5 {[%clk 0:01:14.7]}
30... gxh5 {[%clk 0:01:03]} 31. Bd5+ {[%clk 0:01:09.6]} 31... Kh8 {[%clk
0:01:03]} 32. Be6 {[%clk 0:01:06.3]} 32... Rf8 {[%clk 0:01:02.8]} 33. Rd5 {[%clk
0:00:56.2]} 33... f4 {[%clk 0:01:00.9]} 34. Rxh5 {[%clk 0:00:34.4]} 34... fxg3
{[%clk 0:01:00.6]} 35. fxg3 {[%clk 0:00:34.5]} 35... Rf2+ {[%clk 0:01:00.6]} 36.
Kh3 {[%clk 0:00:35]} 36... Kg7 {[%clk 0:01:00.5]} 37. a4 {[%clk 0:00:32.8]}
37... Re2 {[%clk 0:00:54.5]} 38. Bc4 {[%clk 0:00:31.8]} 38... Re3 {[%clk
0:00:54.4]} 39. Rg5+ {[%clk 0:00:23.1]} 39... Kf6 {[%clk 0:00:53.2]} 40. Rg4
{[%clk 0:00:23.6]} 40... Bd6 {[%clk 0:00:51.8]} 41. Kh4 {[%clk 0:00:22.7]} 41...
Re1 {[%clk 0:00:47.6]} 42. Rg8 {[%clk 0:00:22.1]} 42... Rh1+ {[%clk 0:00:46.1]}
43. Kg4 {[%clk 0:00:22.4]} 43... h5+ {[%clk 0:00:41.3]} 44. Kf3 {[%clk
0:00:22.4]} 44... Rc1 {[%clk 0:00:41.8]} 45. Kg2 {[%clk 0:00:20.7]} 45... Rd1
{[%clk 0:00:27.9]} 46. Be2 {[%clk 0:00:18.7]} 46... Rd2 {[%clk 0:00:26.5]} 47.
Kf3 {[%clk 0:00:17.7]} 47... Rc2 {[%clk 0:00:25.3]} 48. Bc4 {[%clk 0:00:16.2]}
48... Bc5 {[%clk 0:00:24.7]} 49. Rh8 {[%clk 0:00:14.4]} 49... Kg5 {[%clk
0:00:19.9]} 50. Rg8+ {[%clk 0:00:14.5]} 50... Kf5 {[%clk 0:00:20.2]} 51. Bd3+
{[%clk 0:00:14.4]} 1-0

[Event "Late-Titled-Tuesday-Blitz-March-12-2024"]
[Site "Chess.com"]
[Date "2024.03.12"]
[Round "1"]
[White "kids2010"]
[Black "Eloist"]
[Result "1-0"]
[WhiteElo "2762"]
[BlackElo "2432"]
[TimeControl "180+1"]
[EndTime "14:07:50 PDT"]
[Termination "kids2010 won on time"]

1. e4 {[%clk 0:03:00.3]} 1... e6 {[%clk 0:03:00.2]} 2. d3 {[%clk 0:02:56.9]}
2... d5 {[%clk 0:03:00.2]} 3. Qe2 {[%clk 0:02:57.1]} 3... dxe4 {[%clk
0:02:59.4]} 4. dxe4 {[%clk 0:02:58]} 4... b6 {[%clk 0:02:59.9]} 5. Nf3 {[%clk
0:02:58.1]} 5... Ba6 {[%clk 0:02:59.8]} 6. c4 {[%clk 0:02:57.8]} 6... Bb4+
{[%clk 0:02:57.5]} 7. Nbd2 {[%clk 0:02:51.5]} 7... Nc6 {[%clk 0:02:56]} 8. a3
{[%clk 0:02:50.5]} 8... Bc5 {[%clk 0:02:55.6]} 9. b4 {[%clk 0:02:42.1]} 9... Nd4
{[%clk 0:02:55.4]} 10. Qd3 {[%clk 0:02:38.8]} 10... Nxf3+ {[%clk 0:02:52.9]} 11.
Nxf3 {[%clk 0:02:38.2]} 11... Qxd3 {[%clk 0:02:48.5]} 12. Bxd3 {[%clk
0:02:39.1]} 12... Be7 {[%clk 0:02:43.3]} 13. Bb2 {[%clk 0:02:36.5]} 13... Nf6
{[%clk 0:02:39.4]} 14. Ne5 {[%clk 0:02:28.3]} 14... Bb7 {[%clk 0:02:32.9]} 15.
f3 {[%clk 0:02:25]} 15... O-O {[%clk 0:02:25.1]} 16. Ke2 {[%clk 0:02:20]} 16...
a5 {[%clk 0:02:24.4]} 17. Bc3 {[%clk 0:02:16.8]} 17... axb4 {[%clk 0:02:08.5]}
18. axb4 {[%clk 0:02:17.7]} 18... Rxa1 {[%clk 0:02:05.1]} 19. Rxa1 {[%clk
0:02:18.6]} 19... Ra8 {[%clk 0:02:05.2]} 20. Rxa8+ {[%clk 0:02:15.7]} 20... Bxa8
{[%clk 0:02:06.1]} 21. Bc2 {[%clk 0:02:15.2]} 21... Nh5 {[%clk 0:01:44.9]} 22.
g3 {[%clk 0:02:10.4]} 22... f6 {[%clk 0:01:24.2]} 23. Nd3 {[%clk 0:02:04.9]}
23... g5 {[%clk 0:01:20.1]} 24. Ba4 {[%clk 0:02:01.4]} 24... Kf7 {[%clk
0:01:17.8]} 25. c5 {[%clk 0:01:54.3]} 25... bxc5 {[%clk 0:01:08.1]} 26. bxc5
{[%clk 0:01:55.2]} 26... Ng7 {[%clk 0:01:00.6]} 27. Bd7 {[%clk 0:01:45.3]} 27...
Bb7 {[%clk 0:00:57.2]} 28. e5 {[%clk 0:01:30.4]} 28... Ba6 {[%clk 0:00:53.8]}
29. c6 {[%clk 0:01:26.2]} 29... Nf5 {[%clk 0:00:46.8]} 30. Kd2 {[%clk
0:01:14.9]} 30... Bxd3 {[%clk 0:00:26.7]} 31. Kxd3 {[%clk 0:01:15.8]} 31... fxe5
{[%clk 0:00:26.2]} 32. Bxe5 {[%clk 0:01:16.7]} 32... Bd6 {[%clk 0:00:25.1]} 33.
Bc3 {[%clk 0:01:17]} 33... h5 {[%clk 0:00:21.7]} 34. Bc8 {[%clk 0:01:14.7]}
34... Ne7 {[%clk 0:00:14.7]} 35. Bd7 {[%clk 0:01:12.1]} 35... Nf5 {[%clk
0:00:14.4]} 36. Bd2 {[%clk 0:01:08.7]} 36... g4 {[%clk 0:00:13.5]} 37. f4 {[%clk
0:01:06.8]} 37... h4 {[%clk 0:00:11.1]} 38. Be1 {[%clk 0:01:02.3]} 38... hxg3
{[%clk 0:00:09.7]} 39. hxg3 {[%clk 0:01:03.2]} 39... Kf6 {[%clk 0:00:09.2]} 40.
Bf2 {[%clk 0:01:02.9]} 40... Kf7 {[%clk 0:00:08.6]} 41. Ke4 {[%clk 0:01:02.7]}
41... Kf6 {[%clk 0:00:08.6]} 42. Bc8 {[%clk 0:01:02.6]} 42... Ne7 {[%clk
0:00:07.1]} 43. Bb7 {[%clk 0:01:02.2]} 43... Nf5 {[%clk 0:00:06.7]} 44. Ba6
{[%clk 0:01:02.3]} 44... Ne7 {[%clk 0:00:06.7]} 45. Bd4+ {[%clk 0:01:01.7]}
45... Kf7 {[%clk 0:00:06.7]} 46. Bb5 {[%clk 0:01:02.6]} 46... Nf5 {[%clk
0:00:06.5]} 47. Bf2 {[%clk 0:01:03.1]} 47... Kf6 {[%clk 0:00:06.1]} 48. Bc4
{[%clk 0:01:02.5]} 48... Kf7 {[%clk 0:00:06.1]} 49. Be2 {[%clk 0:01:00.3]} 49...
Kf6 {[%clk 0:00:06.2]} 50. Bxg4 {[%clk 0:01:00.4]} 50... Ne7 {[%clk 0:00:05.4]}
51. Bd4+ {[%clk 0:01:00.4]} 51... Kf7 {[%clk 0:00:05.2]} 52. Bh5+ {[%clk
0:01:00.9]} 52... Kf8 {[%clk 0:00:05.2]} 53. Bg4 {[%clk 0:00:57.2]} 53... Kf7
{[%clk 0:00:04.4]} 54. Be3 {[%clk 0:00:55.5]} 54... Nxc6 {[%clk 0:00:04.6]} 55.
Bh5+ {[%clk 0:00:56.4]} 55... Kf8 {[%clk 0:00:04.6]} 56. g4 {[%clk 0:00:57.3]}
56... Ne7 {[%clk 0:00:04.7]} 57. Bd4 {[%clk 0:00:56]} 57... Nc6 {[%clk
0:00:04.3]} 58. Bc3 {[%clk 0:00:55.8]} 58... Ne7 {[%clk 0:00:04.3]} 59. g5
{[%clk 0:00:49.2]} 59... Bxf4 {[%clk 0:00:03.2]} 60. Bf6 {[%clk 0:00:44.9]}
60... Bd6 {[%clk 0:00:02.6]} 61. g6 {[%clk 0:00:45.4]} 61... c5 {[%clk
0:00:01.6]} 62. g7+ {[%clk 0:00:45.5]} 62... Kg8 {[%clk 0:00:01.1]} 63. Bg4
{[%clk 0:00:46.4]} 1-0

[Event "Late-Titled-Tuesday-Blitz-March-12-2024"]
[Site "Chess.com"]
[Date "2024.03.12"]
[Round "1"]
[White "ncofre98"]
[Black "lluiss"]
[Result "1-0"]
[WhiteElo "2615"]
[BlackElo "2243"]
[TimeControl "180+1"]
[EndTime "14:07:51 PDT"]
[Termination "ncofre98 won on time"]

1. c4 {[%clk 0:02:59.4]} 1... Nf6 {[%clk 0:02:58.5]} 2. g3 {[%clk 0:02:58.2]}
2... c6 {[%clk 0:02:57.6]} 3. Nf3 {[%clk 0:02:56.7]} 3... d5 {[%clk 0:02:58.1]}
4. Bg2 {[%clk 0:02:56.7]} 4... g6 {[%clk 0:02:58.4]} 5. Qa4 {[%clk 0:02:55.6]}
5... Bg7 {[%clk 0:02:56.8]} 6. cxd5 {[%clk 0:02:56]} 6... Nxd5 {[%clk
0:02:56.2]} 7. O-O {[%clk 0:02:56.3]} 7... O-O {[%clk 0:02:56.1]} 8. Nc3 {[%clk
0:02:55.7]} 8... Nb6 {[%clk 0:02:54.8]} 9. Qh4 {[%clk 0:02:49.6]} 9... e5 {[%clk
0:02:47.8]} 10. Qxd8 {[%clk 0:02:48.1]} 10... Rxd8 {[%clk 0:02:47]} 11. d3
{[%clk 0:02:48]} 11... h6 {[%clk 0:02:45]} 12. Be3 {[%clk 0:02:41]} 12... Nd5
{[%clk 0:02:40.7]} 13. Bd2 {[%clk 0:02:37.9]} 13... Be6 {[%clk 0:02:38.9]} 14.
Rfc1 {[%clk 0:02:34.2]} 14... Nd7 {[%clk 0:02:36.9]} 15. a3 {[%clk 0:02:18.5]}
15... a5 {[%clk 0:02:31]} 16. Rab1 {[%clk 0:02:11.2]} 16... a4 {[%clk
0:02:25.5]} 17. Nxd5 {[%clk 0:02:04.9]} 17... Bxd5 {[%clk 0:02:22.1]} 18. Bc3
{[%clk 0:02:00.4]} 18... Re8 {[%clk 0:02:07.3]} 19. Nd2 {[%clk 0:01:57.9]} 19...
Bxg2 {[%clk 0:02:04.9]} 20. Kxg2 {[%clk 0:01:58.8]} 20... Nc5 {[%clk 0:02:03.7]}
21. Nc4 {[%clk 0:01:39.4]} 21... Nb3 {[%clk 0:01:37.4]} 22. Rd1 {[%clk
0:01:37.5]} 22... b5 {[%clk 0:01:31.4]} 23. Nd2 {[%clk 0:01:33.6]} 23... Nxd2
{[%clk 0:01:22.5]} 24. Bxd2 {[%clk 0:01:26.7]} 24... c5 {[%clk 0:01:22.5]} 25.
Be3 {[%clk 0:01:26.2]} 25... Bf8 {[%clk 0:01:14.5]} 26. Rdc1 {[%clk 0:01:22.4]}
26... Rec8 {[%clk 0:01:11.2]} 27. Rc2 {[%clk 0:01:15.6]} 27... Rc7 {[%clk
0:01:08.9]} 28. b4 {[%clk 0:01:02.6]} 28... Rac8 {[%clk 0:01:06.5]} 29. bxc5
{[%clk 0:00:55.1]} 29... Bxc5 {[%clk 0:01:04.6]} 30. Bxh6 {[%clk 0:00:50.9]}
30... Bxa3 {[%clk 0:00:56.5]} 31. Rxc7 {[%clk 0:00:47.8]} 31... Rxc7 {[%clk
0:00:56.5]} 32. Rxb5 {[%clk 0:00:48.3]} 32... Be7 {[%clk 0:00:52.7]} 33. Rxe5
{[%clk 0:00:34.8]} 33... Ra7 {[%clk 0:00:52]} 34. Be3 {[%clk 0:00:34.1]} 34...
Rb7 {[%clk 0:00:45.1]} 35. Ra5 {[%clk 0:00:34.1]} 35... a3 {[%clk 0:00:44.9]}
36. Kf3 {[%clk 0:00:30.7]} 36... f6 {[%clk 0:00:42.6]} 37. h4 {[%clk 0:00:29.9]}
37... Kf7 {[%clk 0:00:42.6]} 38. Ra6 {[%clk 0:00:29.9]} 38... Rb2 {[%clk
0:00:37.3]} 39. Bd4 {[%clk 0:00:27.7]} 39... Rb4 {[%clk 0:00:34.1]} 40. e3
{[%clk 0:00:23.2]} 40... Rb3 {[%clk 0:00:27.9]} 41. Ke4 {[%clk 0:00:19.6]} 41...
f5+ {[%clk 0:00:22.8]} 42. Kd5 {[%clk 0:00:19.9]} 42... Rxd3 {[%clk 0:00:22.9]}
43. Ra7 {[%clk 0:00:19.7]} 43... Rd2 {[%clk 0:00:21.6]} 44. Kc4 {[%clk
0:00:17.9]} 44... Ke6 {[%clk 0:00:18]} 45. f4 {[%clk 0:00:15.9]} 45... a2 {[%clk
0:00:17.1]} 46. Kb3 {[%clk 0:00:12.8]} 46... Rg2 {[%clk 0:00:16.5]} 47. Rxa2
{[%clk 0:00:11.9]} 47... Rxg3 {[%clk 0:00:16.7]} 48. Kc4 {[%clk 0:00:11.3]}
48... Bxh4 {[%clk 0:00:16.4]} 49. Ra6+ {[%clk 0:00:11.9]} 49... Kd7 {[%clk
0:00:15.3]} 50. Kd5 {[%clk 0:00:11.4]} 50... Be7 {[%clk 0:00:14.7]} 51. Ra7+
{[%clk 0:00:11.4]} 51... Ke8 {[%clk 0:00:14.9]} 52. Ke6 {[%clk 0:00:11.8]} 1-0

[Event "Late-Titled-Tuesday-Blitz-March-12-2024"]
[Site "Chess.com"]
[Date "2024.03.12"]
[Round "1"]
[White "Schattman"]
[Black "kingofthenil"]
[Result "0-1"]
[WhiteElo "2438"]
[BlackElo "2764"]
[TimeControl "180+1"]
[EndTime "14:07:58 PDT"]
[Termination "kingofthenil won by checkmate"]

1. Nf3 {[%clk 0:03:00.9]} 1... d6 {[%clk 0:02:18.7]} 2. d4 {[%clk 0:03:00]} 2...
g6 {[%clk 0:02:17.2]} 3. g3 {[%clk 0:02:54.6]} 3... Bg7 {[%clk 0:02:14.8]} 4.
Bg2 {[%clk 0:02:55]} 4... e5 {[%clk 0:02:08]} 5. dxe5 {[%clk 0:02:54.6]} 5...
dxe5 {[%clk 0:02:07.9]} 6. Qxd8+ {[%clk 0:02:53.7]} 6... Kxd8 {[%clk 0:02:07.5]}
7. O-O {[%clk 0:02:53.7]} 7... c6 {[%clk 0:02:06.3]} 8. c3 {[%clk 0:02:53.9]}
8... h6 {[%clk 0:02:04]} 9. Nbd2 {[%clk 0:02:54]} 9... Be6 {[%clk 0:02:03.7]}
10. Ne4 {[%clk 0:02:53.8]} 10... Nd7 {[%clk 0:02:03.9]} 11. Be3 {[%clk 0:02:51]}
11... Ne7 {[%clk 0:02:02.2]} 12. Nc5 {[%clk 0:02:45.8]} 12... Nxc5 {[%clk
0:01:56.6]} 13. Bxc5 {[%clk 0:02:46.7]} 13... Nc8 {[%clk 0:01:54.1]} 14. Nd2
{[%clk 0:02:39.3]} 14... Bf8 {[%clk 0:01:51.7]} 15. Bxf8 {[%clk 0:02:20.5]}
15... Rxf8 {[%clk 0:01:52.6]} 16. f4 {[%clk 0:02:19.4]} 16... Nd6 {[%clk
0:01:35.4]} 17. e4 {[%clk 0:02:18.3]} 17... Kc7 {[%clk 0:01:26.5]} 18. fxe5
{[%clk 0:02:12.3]} 18... Nc4 {[%clk 0:01:25.8]} 19. Nxc4 {[%clk 0:02:08.5]}
19... Bxc4 {[%clk 0:01:26.7]} 20. Rfd1 {[%clk 0:01:44.6]} 20... Rae8 {[%clk
0:01:14.6]} 21. b3 {[%clk 0:01:44.7]} 21... Be6 {[%clk 0:01:14.2]} 22. h3 {[%clk
0:01:38.4]} 22... Bc8 {[%clk 0:01:14.2]} 23. Rd6 {[%clk 0:01:34.4]} 23... Rxe5
{[%clk 0:01:14.1]} 24. Rad1 {[%clk 0:01:34.5]} 24... Be6 {[%clk 0:01:14.7]} 25.
R6d4 {[%clk 0:01:27]} 25... a5 {[%clk 0:01:10.3]} 26. Kh2 {[%clk 0:01:25.6]}
26... Re8 {[%clk 0:00:54.8]} 27. h4 {[%clk 0:01:25.4]} 27... Re7 {[%clk
0:00:51.4]} 28. R1d2 {[%clk 0:01:24.3]} 28... c5 {[%clk 0:00:45.2]} 29. Ra4
{[%clk 0:01:11.2]} 29... Rd7 {[%clk 0:00:46.1]} 30. Rxd7+ {[%clk 0:01:09.4]}
30... Bxd7 {[%clk 0:00:44.4]} 31. Rxa5 {[%clk 0:01:09.5]} 31... f5 {[%clk
0:00:21.4]} 32. b4 {[%clk 0:01:03.6]} 32... fxe4 {[%clk 0:00:04]} 33. Rxc5+
{[%clk 0:01:02.9]} 33... Rxc5 {[%clk 0:00:04.3]} 34. bxc5 {[%clk 0:01:03.8]}
34... Bf5 {[%clk 0:00:04.8]} 35. Kg1 {[%clk 0:00:56.4]} 35... Kc6 {[%clk
0:00:05]} 36. Kf2 {[%clk 0:00:57]} 36... Kxc5 {[%clk 0:00:05.9]} 37. Ke3 {[%clk
0:00:57.3]} 37... Kc4 {[%clk 0:00:06.1]} 38. Bxe4 {[%clk 0:00:53.9]} 38... Bxe4
{[%clk 0:00:07]} 39. Kxe4 {[%clk 0:00:54.4]} 39... Kxc3 {[%clk 0:00:05.6]} 40.
Ke5 {[%clk 0:00:54.9]} 40... b5 {[%clk 0:00:04.7]} 41. Kf6 {[%clk 0:00:55]}
41... Kb2 {[%clk 0:00:04.5]} 42. Kxg6 {[%clk 0:00:50.8]} 42... Kxa2 {[%clk
0:00:05]} 43. Kxh6 {[%clk 0:00:46.7]} 43... b4 {[%clk 0:00:05.5]} 44. g4 {[%clk
0:00:47.5]} 44... b3 {[%clk 0:00:05.3]} 45. g5 {[%clk 0:00:48.4]} 45... b2
{[%clk 0:00:06]} 46. g6 {[%clk 0:00:48.9]} 46... b1=Q {[%clk 0:00:06.7]} 47. g7
{[%clk 0:00:49.4]} 47... Qc1+ {[%clk 0:00:04.9]} 48. Kh7 {[%clk 0:00:49.2]}
48... Qc2+ {[%clk 0:00:05.3]} 49. Kh8 {[%clk 0:00:48.8]} 49... Qc3 {[%clk
0:00:05.4]} 50. Kh7 {[%clk 0:00:47.6]} 50... Qd3+ {[%clk 0:00:05.7]} 51. Kh8
{[%clk 0:00:47.8]} 51... Qd4 {[%clk 0:00:06.1]} 52. Kh7 {[%clk 0:00:43]} 52...
Qxh4+ {[%clk 0:00:06.2]} 53. Kg6 {[%clk 0:00:43.4]} 53... Qg4+ {[%clk
0:00:06.5]} 54. Kf7 {[%clk 0:00:43.8]} 54... Qf5+ {[%clk 0:00:06.8]} 55. Ke7
{[%clk 0:00:43.8]} 55... Qg5+ {[%clk 0:00:06.8]} 56. Kf8 {[%clk 0:00:44.4]}
56... Qf6+ {[%clk 0:00:06.5]} 57. Kg8 {[%clk 0:00:44.8]} 57... Kb3 {[%clk
0:00:06.6]} 58. Kh7 {[%clk 0:00:44.7]} 58... Qf7 {[%clk 0:00:06.8]} 59. Kh8
{[%clk 0:00:44.7]} 59... Qh5+ {[%clk 0:00:07.1]} 60. Kg8 {[%clk 0:00:45.2]}
60... Kc4 {[%clk 0:00:08]} 61. Kf8 {[%clk 0:00:45.5]} 61... Qf5+ {[%clk
0:00:08.3]} 62. Ke7 {[%clk 0:00:44.7]} 62... Qg6 {[%clk 0:00:08.8]} 63. Kf8
{[%clk 0:00:45.1]} 63... Qf6+ {[%clk 0:00:09.4]} 64. Kg8 {[%clk 0:00:44.2]}
64... Kd5 {[%clk 0:00:09.9]} 65. Kh7 {[%clk 0:00:44.6]} 65... Qf5+ {[%clk
0:00:09.8]} 66. Kh6 {[%clk 0:00:44.7]} 66... Qf7 {[%clk 0:00:07.3]} 67. Kh7
{[%clk 0:00:42.7]} 67... Qh5+ {[%clk 0:00:07.8]} 68. Kg8 {[%clk 0:00:42.8]}
68... Ke6 {[%clk 0:00:08.7]} 69. Kf8 {[%clk 0:00:43.2]} 69... Qf7# {[%clk
0:00:09.6]} 0-1

[Event "Late-Titled-Tuesday-Blitz-March-12-2024"]
[Site "Chess.com"]
[Date "2024.03.12"]
[Round "1"]
[White "Payyappat"]
[Black "FairChess_on_YouTube"]
[Result "0-1"]
[WhiteElo "2564"]
[BlackElo "3109"]
[TimeControl "180+1"]
[EndTime "14:08:02 PDT"]
[Termination "FairChess_on_YouTube won by resignation"]

1. e4 {[%clk 0:03:00.9]} 1... c6 {[%clk 0:02:57.8]} 2. d4 {[%clk 0:02:58.6]}
2... d5 {[%clk 0:02:57.6]} 3. Nc3 {[%clk 0:02:56.1]} 3... dxe4 {[%clk
0:02:57.5]} 4. Nxe4 {[%clk 0:02:57]} 4... Bf5 {[%clk 0:02:57.4]} 5. Ng3 {[%clk
0:02:53.6]} 5... Bg6 {[%clk 0:02:57.3]} 6. Nf3 {[%clk 0:02:54.3]} 6... Nd7
{[%clk 0:02:56.9]} 7. h4 {[%clk 0:02:54.7]} 7... h6 {[%clk 0:02:57]} 8. Bd3
{[%clk 0:02:55.2]} 8... Bxd3 {[%clk 0:02:56.8]} 9. Qxd3 {[%clk 0:02:56.1]} 9...
Ngf6 {[%clk 0:02:57.2]} 10. Bf4 {[%clk 0:02:52.5]} 10... Qa5+ {[%clk 0:02:56.4]}
11. Bd2 {[%clk 0:02:46.2]} 11... Qa4 {[%clk 0:02:56.8]} 12. O-O {[%clk
0:02:26.3]} 12... e6 {[%clk 0:02:56.3]} 13. Rfe1 {[%clk 0:02:22.7]} 13... Be7
{[%clk 0:02:50.2]} 14. b3 {[%clk 0:02:19.4]} 14... Qa3 {[%clk 0:02:47.9]} 15. c4
{[%clk 0:02:18]} 15... O-O {[%clk 0:02:47.3]} 16. c5 {[%clk 0:02:17.2]} 16...
Nd5 {[%clk 0:02:44.8]} 17. Qc4 {[%clk 0:01:57.1]} 17... b5 {[%clk 0:02:31.3]}
18. Qd3 {[%clk 0:01:42.5]} 18... Rfd8 {[%clk 0:02:23.2]} 19. Qc2 {[%clk
0:01:33]} 19... Qa6 {[%clk 0:02:18.6]} 20. Nh5 {[%clk 0:01:22.1]} 20... N7f6
{[%clk 0:02:15.2]} 21. Nxf6+ {[%clk 0:01:17.5]} 21... Bxf6 {[%clk 0:02:16.1]}
22. Qe4 {[%clk 0:01:14.4]} 22... Rd7 {[%clk 0:02:12.7]} 23. g4 {[%clk
0:01:13.4]} 23... Qc8 {[%clk 0:01:59.4]} 24. g5 {[%clk 0:01:13.2]} 24... hxg5
{[%clk 0:01:59]} 25. hxg5 {[%clk 0:01:14.1]} 25... Bd8 {[%clk 0:01:59.4]} 26. g6
{[%clk 0:01:12.9]} 26... Nf6 {[%clk 0:01:54.5]} 27. gxf7+ {[%clk 0:01:13]} 27...
Rxf7 {[%clk 0:01:53.3]} 28. Qxe6 {[%clk 0:01:13.6]} 28... Nd5 {[%clk 0:01:50.7]}
29. Ng5 {[%clk 0:01:07.3]} 29... Bxg5 {[%clk 0:01:49.5]} 30. Bxg5 {[%clk
0:01:08.2]} 30... Qxe6 {[%clk 0:01:43.8]} 31. Rxe6 {[%clk 0:01:09.1]} 31... Raf8
{[%clk 0:01:38.4]} 32. Bh4 {[%clk 0:01:04.4]} 32... Rf4 {[%clk 0:01:28.3]} 33.
Bg3 {[%clk 0:01:04.7]} 33... R4f6 {[%clk 0:01:27.3]} 34. Rae1 {[%clk 0:01:04.2]}
34... Kf7 {[%clk 0:01:24.7]} 35. Rd6 {[%clk 0:00:54.4]} 35... a5 {[%clk
0:01:09]} 36. Bh4 {[%clk 0:00:50.7]} 36... Rf4 {[%clk 0:00:58.9]} 37. Bg3 {[%clk
0:00:50.8]} 37... Rf6 {[%clk 0:00:58.8]} 38. Be5 {[%clk 0:00:39.6]} 38... Rg6+
{[%clk 0:00:54.9]} 39. Rxg6 {[%clk 0:00:38]} 39... Kxg6 {[%clk 0:00:54.9]} 40.
Bg3 {[%clk 0:00:38.5]} 40... Kf7 {[%clk 0:00:50.4]} 41. Bd6 {[%clk 0:00:37.7]}
41... Re8 {[%clk 0:00:50.3]} 42. Be5 {[%clk 0:00:37.5]} 42... Ra8 {[%clk
0:00:45.6]} 43. Re3 {[%clk 0:00:36.6]} 43... Nxe3 {[%clk 0:00:45.2]} 44. fxe3
{[%clk 0:00:36.5]} 44... b4 {[%clk 0:00:40.3]} 45. Kf2 {[%clk 0:00:35.8]} 45...
a4 {[%clk 0:00:40.4]} 46. e4 {[%clk 0:00:35.5]} 46... axb3 {[%clk 0:00:40.4]}
47. axb3 {[%clk 0:00:36.1]} 47... Ra2+ {[%clk 0:00:33.5]} 48. Ke3 {[%clk
0:00:35.2]} 48... Ra3 {[%clk 0:00:33.9]} 49. d5 {[%clk 0:00:35.3]} 49... Rxb3+
{[%clk 0:00:34.5]} 50. Kd4 {[%clk 0:00:35.6]} 50... Rc3 {[%clk 0:00:23]} 51.
dxc6 {[%clk 0:00:31.6]} 51... Ke6 {[%clk 0:00:23.2]} 52. c7 {[%clk 0:00:30.9]}
52... Kd7 {[%clk 0:00:22.8]} 53. Kd5 {[%clk 0:00:30.7]} 53... Rc2 {[%clk
0:00:18.4]} 54. Bxg7 {[%clk 0:00:30.4]} 54... b3 {[%clk 0:00:17.4]} 55. e5
{[%clk 0:00:30.3]} 55... b2 {[%clk 0:00:16.4]} 56. e6+ {[%clk 0:00:30.5]} 56...
Kxc7 {[%clk 0:00:16.9]} 57. Be5+ {[%clk 0:00:16.6]} 57... Kc8 {[%clk 0:00:16.1]}
58. e7 {[%clk 0:00:16.2]} 58... Kd7 {[%clk 0:00:16]} 59. c6+ {[%clk 0:00:15.3]}
59... Kxe7 {[%clk 0:00:16]} 60. c7 {[%clk 0:00:16.2]} 0-1